[Event "Early-Titled-Tuesday-Blitz-March-19-2024"]
[Site "Chess.com"]
[Date "2024.03.19"]
[Round "5"]
[White "Hope_6"]
[Black "XDPS"]
[Result "0-1"]
[WhiteElo "2707"]
[BlackElo "2915"]
[TimeControl "180+1"]
[EndTime "8:58:00 PDT"]
[Termination "XDPS won by resignation"]

1. e4 {[%clk 0:02:59.9]} 1... c5 {[%clk 0:02:57]} 2. Nf3 {[%clk 0:02:59.5]} 2...
e6 {[%clk 0:02:48.7]} 3. d4 {[%clk 0:02:59.5]} 3... cxd4 {[%clk 0:02:49.6]} 4.
Nxd4 {[%clk 0:02:59.6]} 4... a6 {[%clk 0:02:38.3]} 5. Bd3 {[%clk 0:02:57.2]}
5... Bc5 {[%clk 0:02:37.7]} 6. Nb3 {[%clk 0:02:55.1]} 6... Ba7 {[%clk
0:02:38.2]} 7. Qg4 {[%clk 0:02:53.3]} 7... Nf6 {[%clk 0:02:38.2]} 8. Qg3 {[%clk
0:02:51.4]} 8... d6 {[%clk 0:02:38.7]} 9. Be3 {[%clk 0:02:49.6]} 9... Bxe3
{[%clk 0:02:37.1]} 10. Qxe3 {[%clk 0:02:49]} 10... Nc6 {[%clk 0:02:36.7]} 11.
O-O {[%clk 0:02:47.8]} 11... O-O {[%clk 0:02:37.2]} 12. Rd1 {[%clk 0:02:47.4]}
12... Qc7 {[%clk 0:02:34.9]} 13. Be2 {[%clk 0:02:39.4]} 13... b5 {[%clk
0:02:33.4]} 14. a4 {[%clk 0:02:35]} 14... bxa4 {[%clk 0:02:32.4]} 15. Rxa4
{[%clk 0:02:34]} 15... Bb7 {[%clk 0:02:32.9]} 16. Nc3 {[%clk 0:02:32.5]} 16...
Rfd8 {[%clk 0:02:29.8]} 17. Rda1 {[%clk 0:02:29.9]} 17... Ne5 {[%clk 0:02:19.6]}
18. Na5 {[%clk 0:02:09.3]} 18... Bc8 {[%clk 0:02:12.8]} 19. Nc4 {[%clk
0:02:08.5]} 19... Rb8 {[%clk 0:02:04.8]} 20. Nxe5 {[%clk 0:02:03]} 20... dxe5
{[%clk 0:02:05.7]} 21. b3 {[%clk 0:02:01.8]} 21... h6 {[%clk 0:01:57.2]} 22. h3
{[%clk 0:01:59.5]} 22... Rd6 {[%clk 0:01:56.2]} 23. Bxa6 {[%clk 0:01:30.1]}
23... Bxa6 {[%clk 0:01:54.4]} 24. Rxa6 {[%clk 0:01:30.3]} 24... Rxa6 {[%clk
0:01:54.1]} 25. Rxa6 {[%clk 0:01:31.2]} 25... Rc8 {[%clk 0:01:54.8]} 26. Ne2
{[%clk 0:00:56.6]} 26... Qxc2 {[%clk 0:01:53.4]} 27. Ra1 {[%clk 0:00:56.6]}
27... Qxe4 {[%clk 0:01:50.7]} 28. Qxe4 {[%clk 0:00:55.9]} 28... Nxe4 {[%clk
0:01:51.6]} 29. Rb1 {[%clk 0:00:54.9]} 29... Rc2 {[%clk 0:01:41.5]} 30. Ng3
{[%clk 0:00:50.5]} 30... Nd2 {[%clk 0:01:41.4]} 31. Re1 {[%clk 0:00:45]} 31...
f6 {[%clk 0:01:33]} 32. Nh5 {[%clk 0:00:38.8]} 32... Nxb3 {[%clk 0:01:29.5]} 33.
f4 {[%clk 0:00:37.2]} 33... Rc1 {[%clk 0:00:55.7]} 34. Rxc1 {[%clk 0:00:35]}
34... Nxc1 {[%clk 0:00:56.6]} 35. fxe5 {[%clk 0:00:35.1]} 35... f5 {[%clk
0:00:57.2]} 36. Nf4 {[%clk 0:00:25.6]} 36... Kf7 {[%clk 0:00:57.6]} 37. g4
{[%clk 0:00:20]} 37... g5 {[%clk 0:00:56.1]} 38. Ng2 {[%clk 0:00:15.1]} 38...
Nd3 {[%clk 0:00:52.2]} 39. Ne3 {[%clk 0:00:14.8]} 39... Kg6 {[%clk 0:00:33.1]}
40. gxf5+ {[%clk 0:00:14.5]} 40... exf5 {[%clk 0:00:33]} 41. e6 {[%clk
0:00:15.2]} 41... f4 {[%clk 0:00:20.2]} 42. e7 {[%clk 0:00:09.6]} 42... Kf7
{[%clk 0:00:20.7]} 43. Nf5 {[%clk 0:00:09]} 43... h5 {[%clk 0:00:15.3]} 44. Ng7
{[%clk 0:00:09.2]} 44... Kxe7 {[%clk 0:00:14.5]} 45. Nxh5 {[%clk 0:00:09.3]}
45... Kf7 {[%clk 0:00:14.1]} 46. Kg2 {[%clk 0:00:02]} 46... Kg6 {[%clk
0:00:14.1]} 47. Ng3 {[%clk 0:00:02.5]} 47... fxg3 {[%clk 0:00:11.6]} 48. Kxg3
{[%clk 0:00:03.4]} 48... Kh5 {[%clk 0:00:12]} 0-1

[Event "Early-Titled-Tuesday-Blitz-March-19-2024"]
[Site "Chess.com"]
[Date "2024.03.19"]
[Round "5"]
[White "vladislavkovalev"]
[Black "Anton_Demchenko"]
[Result "0-1"]
[WhiteElo "2861"]
[BlackElo "3023"]
[TimeControl "180+1"]
[EndTime "8:58:01 PDT"]
[Termination "Anton_Demchenko won by resignation"]

1. e4 {[%clk 0:03:00.9]} 1... e5 {[%clk 0:03:00.6]} 2. Nf3 {[%clk 0:03:01.1]}
2... Nc6 {[%clk 0:03:01.2]} 3. Bb5 {[%clk 0:03:01.6]} 3... a6 {[%clk 0:03:01.7]}
4. Ba4 {[%clk 0:03:02]} 4... Nge7 {[%clk 0:03:02.2]} 5. Nc3 {[%clk 0:02:57.8]}
5... d6 {[%clk 0:03:02]} 6. d3 {[%clk 0:02:34.5]} 6... h6 {[%clk 0:02:50]} 7. a3
{[%clk 0:02:22]} 7... Bd7 {[%clk 0:02:17.5]} 8. Bb3 {[%clk 0:02:21.7]} 8... g6
{[%clk 0:02:09.3]} 9. Be3 {[%clk 0:02:21.2]} 9... Bg7 {[%clk 0:02:09.1]} 10. Qd2
{[%clk 0:02:21.7]} 10... Nd4 {[%clk 0:02:04.1]} 11. Ba2 {[%clk 0:01:41]} 11...
c5 {[%clk 0:02:00.5]} 12. Nd5 {[%clk 0:01:23.7]} 12... Be6 {[%clk 0:01:53.4]}
13. Bxd4 {[%clk 0:01:05.5]} 13... cxd4 {[%clk 0:01:42.7]} 14. Nxe7 {[%clk
0:01:05.4]} 14... Qxe7 {[%clk 0:01:41.5]} 15. Bxe6 {[%clk 0:01:04.9]} 15... Qxe6
{[%clk 0:01:40.7]} 16. O-O {[%clk 0:01:04.3]} 16... O-O {[%clk 0:01:40.5]} 17.
Rfe1 {[%clk 0:01:03.8]} 17... Rac8 {[%clk 0:01:37.6]} 18. Rac1 {[%clk
0:00:56.8]} 18... Rc6 {[%clk 0:01:15.3]} 19. c3 {[%clk 0:00:54]} 19... dxc3
{[%clk 0:01:15.5]} 20. Rxc3 {[%clk 0:00:54.7]} 20... Rfc8 {[%clk 0:01:09.5]} 21.
Rec1 {[%clk 0:00:53.3]} 21... d5 {[%clk 0:00:59.4]} 22. g3 {[%clk 0:00:46.1]}
22... Qd6 {[%clk 0:00:51.9]} 23. Rxc6 {[%clk 0:00:25.6]} 23... Rxc6 {[%clk
0:00:45.8]} 24. Rxc6 {[%clk 0:00:25.7]} 24... Qxc6 {[%clk 0:00:46.5]} 25. Qe2
{[%clk 0:00:22.4]} 25... Bf6 {[%clk 0:00:34.4]} 26. h4 {[%clk 0:00:19.9]} 26...
h5 {[%clk 0:00:34.2]} 27. Kg2 {[%clk 0:00:20]} 27... Kg7 {[%clk 0:00:34.1]} 28.
Kg1 {[%clk 0:00:12.9]} 28... b5 {[%clk 0:00:34.1]} 29. Kg2 {[%clk 0:00:13.2]}
29... a5 {[%clk 0:00:32.7]} 30. Kg1 {[%clk 0:00:07.3]} 30... a4 {[%clk
0:00:32.7]} 31. Kg2 {[%clk 0:00:07.8]} 31... Qc5 {[%clk 0:00:26.1]} 32. Kg1
{[%clk 0:00:06.8]} 32... b4 {[%clk 0:00:16.9]} 33. axb4 {[%clk 0:00:06.7]} 33...
Qxb4 {[%clk 0:00:17.8]} 34. Kg2 {[%clk 0:00:07]} 34... Qb3 {[%clk 0:00:16]} 35.
Kg1 {[%clk 0:00:05.7]} 35... Kg8 {[%clk 0:00:14.9]} 36. Kg2 {[%clk 0:00:06]}
36... Bg7 {[%clk 0:00:15.5]} 37. Kg1 {[%clk 0:00:04.8]} 37... f6 {[%clk
0:00:13]} 38. exd5 {[%clk 0:00:05.2]} 38... Qxd5 {[%clk 0:00:10.3]} 39. Qe4
{[%clk 0:00:03.7]} 39... Qxe4 {[%clk 0:00:06.4]} 40. dxe4 {[%clk 0:00:04.6]}
40... Bh6 {[%clk 0:00:07.2]} 41. Ne1 {[%clk 0:00:04.1]} 41... Bc1 {[%clk
0:00:07.9]} 42. Nd3 {[%clk 0:00:02.5]} 42... Bxb2 {[%clk 0:00:08.6]} 43. Nb4
{[%clk 0:00:01.2]} 43... a3 {[%clk 0:00:09.2]} 44. Kf1 {[%clk 0:00:01.7]} 44...
Kf7 {[%clk 0:00:08.5]} 45. Ke2 {[%clk 0:00:02.4]} 45... Ke6 {[%clk 0:00:08.1]}
46. Kd3 {[%clk 0:00:02.9]} 46... f5 {[%clk 0:00:08.6]} 47. exf5+ {[%clk
0:00:01.4]} 47... Kxf5 {[%clk 0:00:07]} 48. Ke3 {[%clk 0:00:01.2]} 48... Bd4+
{[%clk 0:00:07]} 49. Kf3 {[%clk 0:00:01.3]} 49... e4+ {[%clk 0:00:07.6]} 50. Ke2
{[%clk 0:00:02.2]} 50... Kg4 {[%clk 0:00:06.6]} 51. Ke1 {[%clk 0:00:01.3]} 51...
Kf3 {[%clk 0:00:06.7]} 0-1

[Event "Early-Titled-Tuesday-Blitz-March-19-2024"]
[Site "Chess.com"]
[Date "2024.03.19"]
[Round "5"]
[White "TV27"]
[Black "venturov"]
[Result "0-1"]
[WhiteElo "2255"]
[BlackElo "2486"]
[TimeControl "180+1"]
[EndTime "8:58:02 PDT"]
[Termination "venturov won on time"]

1. f4 {[%clk 0:03:00.3]} 1... e5 {[%clk 0:02:56.2]} 2. fxe5 {[%clk 0:02:54.7]}
2... d6 {[%clk 0:02:56.6]} 3. exd6 {[%clk 0:02:54.3]} 3... Bxd6 {[%clk
0:02:57.3]} 4. Nf3 {[%clk 0:02:53.4]} 4... g5 {[%clk 0:02:43.4]} 5. g3 {[%clk
0:02:51.3]} 5... Nc6 {[%clk 0:02:34.1]} 6. d4 {[%clk 0:01:59.6]} 6... g4 {[%clk
0:02:32.4]} 7. Ne5 {[%clk 0:01:50.1]} 7... Bxe5 {[%clk 0:02:29.6]} 8. dxe5
{[%clk 0:01:49.5]} 8... Qxd1+ {[%clk 0:02:30.5]} 9. Kxd1 {[%clk 0:01:49.4]} 9...
Bf5 {[%clk 0:02:15.2]} 10. Bf4 {[%clk 0:01:44]} 10... O-O-O+ {[%clk 0:02:10.6]}
11. Kc1 {[%clk 0:01:43.6]} 11... Nge7 {[%clk 0:02:03.6]} 12. Bg2 {[%clk
0:01:41.7]} 12... Nd4 {[%clk 0:01:59.8]} 13. Nc3 {[%clk 0:01:18.2]} 13... Nxc2
{[%clk 0:01:56.9]} 14. e4 {[%clk 0:01:16.1]} 14... Nxa1 {[%clk 0:01:52.8]} 15.
exf5 {[%clk 0:01:15.7]} 15... Nxf5 {[%clk 0:01:42.1]} 16. Kb1 {[%clk 0:01:10.3]}
16... Nd4 {[%clk 0:01:32.3]} 17. Kxa1 {[%clk 0:01:07.3]} 17... Ne6 {[%clk
0:01:31.1]} 18. Ne4 {[%clk 0:00:59.3]} 18... h5 {[%clk 0:01:25.7]} 19. Bg5
{[%clk 0:00:50.9]} 19... Nxg5 {[%clk 0:01:18.4]} 20. Nxg5 {[%clk 0:00:50.4]}
20... Rd2 {[%clk 0:01:19]} 21. Be4 {[%clk 0:00:46.3]} 21... Re2 {[%clk
0:00:58.8]} 22. Bf5+ {[%clk 0:00:39.6]} 22... Kb8 {[%clk 0:00:58.8]} 23. Nxf7
{[%clk 0:00:39.4]} 23... Rf8 {[%clk 0:00:58.6]} 24. e6 {[%clk 0:00:39.2]} 24...
c6 {[%clk 0:00:55.5]} 25. Rf1 {[%clk 0:00:35]} 25... Kc7 {[%clk 0:00:54.1]} 26.
a3 {[%clk 0:00:33.4]} 26... a5 {[%clk 0:00:48.7]} 27. h3 {[%clk 0:00:24.3]}
27... gxh3 {[%clk 0:00:33.4]} 28. Bxh3 {[%clk 0:00:24]} 28... b5 {[%clk
0:00:32.4]} 29. Bf5 {[%clk 0:00:20.1]} 29... b4 {[%clk 0:00:28.1]} 30. axb4
{[%clk 0:00:16.1]} 30... axb4 {[%clk 0:00:29]} 31. Kb1 {[%clk 0:00:16]} 31... b3
{[%clk 0:00:25.6]} 32. Rd1 {[%clk 0:00:15.4]} 32... Kb6 {[%clk 0:00:18.2]} 33.
Bg6 {[%clk 0:00:13]} 33... Rxe6 {[%clk 0:00:17.3]} 34. Bxh5 {[%clk 0:00:13.1]}
34... Re3 {[%clk 0:00:13.5]} 35. g4 {[%clk 0:00:12.8]} 35... Rfe8 {[%clk
0:00:08.7]} 36. Nd6 {[%clk 0:00:12.3]} 36... Re1 {[%clk 0:00:03]} 37. g5 {[%clk
0:00:12.3]} 37... Rxd1+ {[%clk 0:00:03.1]} 38. Bxd1 {[%clk 0:00:12]} 38... Re1
{[%clk 0:00:03.2]} 39. Kc1 {[%clk 0:00:11.8]} 39... Kc5 {[%clk 0:00:03.9]} 40.
Nf5 {[%clk 0:00:09.1]} 40... Rg1 {[%clk 0:00:04.1]} 41. Ne3 {[%clk 0:00:04.4]}
41... Kb4 {[%clk 0:00:03.8]} 42. Ng4 {[%clk 0:00:02.8]} 42... Rf1 {[%clk
0:00:02.5]} 43. g6 {[%clk 0:00:02.6]} 43... Rf8 {[%clk 0:00:03.3]} 44. g7 {[%clk
0:00:02.8]} 44... Rg8 {[%clk 0:00:04]} 45. Ne5 {[%clk 0:00:03]} 45... c5 {[%clk
0:00:03.1]} 46. Be2 {[%clk 0:00:02]} 46... Rxg7 {[%clk 0:00:03.1]} 47. Nd3+
{[%clk 0:00:02.1]} 47... Ka4 {[%clk 0:00:03.7]} 48. Bd1 {[%clk 0:00:01.9]} 48...
c4 {[%clk 0:00:03.6]} 49. Nc5+ {[%clk 0:00:01.8]} 49... Kb4 {[%clk 0:00:04.2]}
0-1

[Event "Early-Titled-Tuesday-Blitz-March-19-2024"]
[Site "Chess.com"]
[Date "2024.03.19"]
[Round "5"]
[White "AlexTruskavetsky"]
[Black "Sanan_Sjugirov"]
[Result "1/2-1/2"]
[WhiteElo "2689"]
[BlackElo "3008"]
[TimeControl "180+1"]
[EndTime "8:58:04 PDT"]
[Termination "Game drawn by repetition"]

1. d4 {[%clk 0:03:00.6]} 1... Nf6 {[%clk 0:02:56.8]} 2. c4 {[%clk 0:03:00.7]}
2... g6 {[%clk 0:02:57.4]} 3. Nc3 {[%clk 0:03:00.1]} 3... Bg7 {[%clk 0:02:58]}
4. e4 {[%clk 0:03:00.4]} 4... d6 {[%clk 0:02:58.5]} 5. f4 {[%clk 0:03:00.6]}
5... O-O {[%clk 0:02:58.4]} 6. Nf3 {[%clk 0:03:01]} 6... c5 {[%clk 0:02:59]} 7.
d5 {[%clk 0:03:01.2]} 7... e6 {[%clk 0:02:59]} 8. Bd3 {[%clk 0:03:01.4]} 8...
exd5 {[%clk 0:02:59.1]} 9. cxd5 {[%clk 0:03:02.3]} 9... Bg4 {[%clk 0:02:59.1]}
10. O-O {[%clk 0:03:02]} 10... Nbd7 {[%clk 0:02:58.6]} 11. h3 {[%clk 0:03:00.1]}
11... Bxf3 {[%clk 0:02:58.8]} 12. Qxf3 {[%clk 0:03:01]} 12... a6 {[%clk
0:02:57]} 13. a4 {[%clk 0:03:00.9]} 13... Rc8 {[%clk 0:02:56.3]} 14. Bd2 {[%clk
0:02:59.4]} 14... c4 {[%clk 0:02:55.6]} 15. Be2 {[%clk 0:02:59.5]} 15... Re8
{[%clk 0:02:55.7]} 16. Rfe1 {[%clk 0:02:23.7]} 16... b5 {[%clk 0:02:47.4]} 17.
axb5 {[%clk 0:02:16.8]} 17... axb5 {[%clk 0:02:48.3]} 18. Bf1 {[%clk 0:02:17.3]}
18... b4 {[%clk 0:02:37.9]} 19. Nd1 {[%clk 0:02:17.1]} 19... Nc5 {[%clk
0:02:27]} 20. Nf2 {[%clk 0:02:16.7]} 20... Nb3 {[%clk 0:02:15.9]} 21. Rad1
{[%clk 0:02:06.5]} 21... c3 {[%clk 0:02:07.2]} 22. bxc3 {[%clk 0:02:00.9]} 22...
Nxd2 {[%clk 0:02:06.1]} 23. Rxd2 {[%clk 0:02:00.8]} 23... Rxc3 {[%clk
0:02:05.5]} 24. Rd3 {[%clk 0:01:44.1]} 24... Nxd5 {[%clk 0:02:00]} 25. e5 {[%clk
0:01:27.5]} 25... Rxd3 {[%clk 0:01:54.6]} 26. Nxd3 {[%clk 0:01:02.1]} 26... dxe5
{[%clk 0:01:53.6]} 27. fxe5 {[%clk 0:01:03]} 27... Nc3 {[%clk 0:01:41.7]} 28.
Qf4 {[%clk 0:00:53.8]} 28... b3 {[%clk 0:01:15.8]} 29. Qb4 {[%clk 0:00:47.7]}
29... b2 {[%clk 0:01:01]} 30. Qxb2 {[%clk 0:00:33.7]} 30... Qd4+ {[%clk
0:01:00.9]} 31. Qf2 {[%clk 0:00:26.6]} 31... Nb5 {[%clk 0:00:56.3]} 32. Qxd4
{[%clk 0:00:14.3]} 32... Nxd4 {[%clk 0:00:57.2]} 33. Re4 {[%clk 0:00:14.7]}
33... Ne6 {[%clk 0:00:53.2]} 34. h4 {[%clk 0:00:13.2]} 34... Rd8 {[%clk
0:00:49.6]} 35. Rc4 {[%clk 0:00:10.7]} 35... Bh6 {[%clk 0:00:48]} 36. Kf2 {[%clk
0:00:10.4]} 36... Bf8 {[%clk 0:00:45.6]} 37. g4 {[%clk 0:00:10.4]} 37... Be7
{[%clk 0:00:45.3]} 38. g5 {[%clk 0:00:10.2]} 38... Rb8 {[%clk 0:00:43.9]} 39.
Be2 {[%clk 0:00:09.7]} 39... Ng7 {[%clk 0:00:42.7]} 40. Bg4 {[%clk 0:00:09.2]}
40... h5 {[%clk 0:00:27.1]} 41. Bh3 {[%clk 0:00:08.8]} 41... Rb3 {[%clk
0:00:25]} 42. Ke2 {[%clk 0:00:06.7]} 42... Rb7 {[%clk 0:00:11.7]} 43. Nf4 {[%clk
0:00:06.8]} 43... Rb5 {[%clk 0:00:08.8]} 44. Nd3 {[%clk 0:00:05.5]} 44... Bf8
{[%clk 0:00:08.3]} 45. Rc8 {[%clk 0:00:05.2]} 45... Rb7 {[%clk 0:00:07.9]} 46.
Ke3 {[%clk 0:00:05.4]} 46... Re7 {[%clk 0:00:06.1]} 47. Ke4 {[%clk 0:00:05.7]}
47... Ra7 {[%clk 0:00:04.8]} 48. Nf4 {[%clk 0:00:06]} 48... Ra4+ {[%clk
0:00:05.2]} 49. Kf3 {[%clk 0:00:06.3]} 49... Ra3+ {[%clk 0:00:05.7]} 50. Ke4
{[%clk 0:00:06.7]} 50... Ra4+ {[%clk 0:00:06.1]} 51. Kf3 {[%clk 0:00:07]} 51...
Ra5 {[%clk 0:00:06.7]} 52. Ke4 {[%clk 0:00:06.5]} 52... Ra4+ {[%clk 0:00:04.4]}
1/2-1/2

[Event "Early-Titled-Tuesday-Blitz-March-19-2024"]
[Site "Chess.com"]
[Date "2024.03.19"]
[Round "5"]
[White "temus_galaktionov"]
[Black "NelsonLinda"]
[Result "0-1"]
[WhiteElo "2850"]
[BlackElo "2663"]
[TimeControl "180+1"]
[EndTime "8:58:04 PDT"]
[Termination "NelsonLinda won by resignation"]

1. d4 {[%clk 0:02:54.6]} 1... Nf6 {[%clk 0:02:54.4]} 2. Nf3 {[%clk 0:02:54.4]}
2... g6 {[%clk 0:02:48.5]} 3. c4 {[%clk 0:02:54.3]} 3... Bg7 {[%clk 0:02:48.7]}
4. Nc3 {[%clk 0:02:55]} 4... O-O {[%clk 0:02:49]} 5. e4 {[%clk 0:02:55.2]} 5...
d6 {[%clk 0:02:49.6]} 6. Be2 {[%clk 0:02:54.3]} 6... e5 {[%clk 0:02:37.9]} 7.
O-O {[%clk 0:02:52.6]} 7... Nbd7 {[%clk 0:02:28.6]} 8. Be3 {[%clk 0:02:43.6]}
8... exd4 {[%clk 0:02:15.2]} 9. Nxd4 {[%clk 0:02:44.5]} 9... Re8 {[%clk
0:02:15.2]} 10. f3 {[%clk 0:02:44.7]} 10... c6 {[%clk 0:02:15.5]} 11. Qd2 {[%clk
0:02:43.8]} 11... d5 {[%clk 0:02:11.2]} 12. exd5 {[%clk 0:02:43.8]} 12... cxd5
{[%clk 0:02:11.6]} 13. cxd5 {[%clk 0:02:44.6]} 13... Nb6 {[%clk 0:02:09.5]} 14.
Bb5 {[%clk 0:02:43.5]} 14... Bd7 {[%clk 0:02:08.7]} 15. Bh6 {[%clk 0:02:43.2]}
15... a6 {[%clk 0:02:01.2]} 16. Bxg7 {[%clk 0:02:38.8]} 16... Kxg7 {[%clk
0:02:01]} 17. Bxd7 {[%clk 0:02:37.6]} 17... Qxd7 {[%clk 0:02:00.8]} 18. d6
{[%clk 0:02:37.8]} 18... Nc4 {[%clk 0:01:54.8]} 19. Qg5 {[%clk 0:02:37.3]} 19...
h6 {[%clk 0:01:36.8]} 20. Qg3 {[%clk 0:02:27.6]} 20... Nh5 {[%clk 0:01:17.2]}
21. Qf2 {[%clk 0:02:26.1]} 21... Qxd6 {[%clk 0:01:13.7]} 22. Ne4 {[%clk
0:02:18.1]} 22... Qf4 {[%clk 0:01:07.5]} 23. b3 {[%clk 0:02:15.2]} 23... Nd6
{[%clk 0:00:59.9]} 24. Nxd6 {[%clk 0:02:11]} 24... Qxd6 {[%clk 0:01:00.8]} 25.
Rad1 {[%clk 0:02:11.3]} 25... Qb4 {[%clk 0:00:58.2]} 26. Qb2 {[%clk 0:02:07.3]}
26... Nf6 {[%clk 0:00:57.7]} 27. Kh1 {[%clk 0:02:03.9]} 27... Rac8 {[%clk
0:00:55.8]} 28. h3 {[%clk 0:01:56.2]} 28... Qc3 {[%clk 0:00:55.1]} 29. Qb1
{[%clk 0:01:52.9]} 29... Nh5 {[%clk 0:00:50.4]} 30. Rf2 {[%clk 0:01:49.5]} 30...
Rcd8 {[%clk 0:00:44.2]} 31. Rfd2 {[%clk 0:01:39.3]} 31... Ng3+ {[%clk
0:00:37.6]} 32. Kh2 {[%clk 0:01:36.3]} 32... Nf1+ {[%clk 0:00:32.9]} 33. Rxf1
{[%clk 0:01:31.8]} 33... Qxd2 {[%clk 0:00:33.3]} 34. Rd1 {[%clk 0:01:28.9]}
34... Qf4+ {[%clk 0:00:32.2]} 35. g3 {[%clk 0:01:29.4]} 35... Qe3 {[%clk
0:00:31.7]} 36. Qb2 {[%clk 0:01:29.4]} 36... Kh7 {[%clk 0:00:30.7]} 37. h4
{[%clk 0:01:24.6]} 37... Rd5 {[%clk 0:00:25.8]} 38. Kh3 {[%clk 0:01:14.4]} 38...
Red8 {[%clk 0:00:24.7]} 39. h5 {[%clk 0:01:01.7]} 39... Rxd4 {[%clk 0:00:22.6]}
40. hxg6+ {[%clk 0:01:01.7]} 40... fxg6 {[%clk 0:00:23.5]} 41. Rf1 {[%clk
0:00:58.2]} 41... Qe6+ {[%clk 0:00:20.9]} 42. g4 {[%clk 0:00:52.2]} 42... Rd2
{[%clk 0:00:20.9]} 43. Qc3 {[%clk 0:00:50.8]} 43... Qd6 {[%clk 0:00:21.3]} 44.
Rh1 {[%clk 0:00:48]} 44... Rd3 {[%clk 0:00:20.7]} 45. Qe1 {[%clk 0:00:42.8]}
45... Rxf3+ {[%clk 0:00:20.8]} 46. Kg2 {[%clk 0:00:43.3]} 46... Rd3 {[%clk
0:00:19]} 47. g5 {[%clk 0:00:23.8]} 47... Rd2+ {[%clk 0:00:18.6]} 48. Kh3 {[%clk
0:00:21.8]} 48... Qd3+ {[%clk 0:00:17.1]} 49. Qg3 {[%clk 0:00:22.4]} 49... Qxg3+
{[%clk 0:00:16.9]} 50. Kxg3 {[%clk 0:00:23.3]} 50... R8d3+ {[%clk 0:00:17.2]}
51. Kf4 {[%clk 0:00:23.9]} 51... h5 {[%clk 0:00:15.1]} 52. Rc1 {[%clk
0:00:22.7]} 52... Rd4+ {[%clk 0:00:14.8]} 53. Ke3 {[%clk 0:00:22.6]} 53... R2d3+
{[%clk 0:00:15.2]} 54. Ke2 {[%clk 0:00:22.8]} 54... Rd7 {[%clk 0:00:15.8]} 55.
Rc8 {[%clk 0:00:21.2]} 55... R3d5 {[%clk 0:00:15.9]} 56. Kf3 {[%clk 0:00:18.6]}
56... Rxg5 {[%clk 0:00:16.2]} 57. Kf4 {[%clk 0:00:19.5]} 57... Rf5+ {[%clk
0:00:16.8]} 58. Ke4 {[%clk 0:00:20]} 58... h4 {[%clk 0:00:17.3]} 59. Rc3 {[%clk
0:00:19.2]} 59... Re7+ {[%clk 0:00:16.2]} 60. Kd4 {[%clk 0:00:19.5]} 60... Rh5
{[%clk 0:00:16.6]} 61. Rh3 {[%clk 0:00:19.2]} 61... g5 {[%clk 0:00:17.3]} 62.
Rh1 {[%clk 0:00:19.7]} 62... g4 {[%clk 0:00:17.9]} 63. Kd3 {[%clk 0:00:19.3]}
63... h3 {[%clk 0:00:18.1]} 0-1

[Event "Early-Titled-Tuesday-Blitz-March-19-2024"]
[Site "Chess.com"]
[Date "2024.03.19"]
[Round "5"]
[White "wonderfultime"]
[Black "Iball95"]
[Result "1-0"]
[WhiteElo "3081"]
[BlackElo "2893"]
[TimeControl "180+1"]
[EndTime "8:58:06 PDT"]
[Termination "wonderfultime won by checkmate"]

1. d4 {[%clk 0:03:00.9]} 1... d5 {[%clk 0:02:59.9]} 2. Nf3 {[%clk 0:02:56]} 2...
Nf6 {[%clk 0:03:00]} 3. Bf4 {[%clk 0:02:56]} 3... Bf5 {[%clk 0:03:00.8]} 4. c4
{[%clk 0:02:55.2]} 4... e6 {[%clk 0:02:59.8]} 5. Qb3 {[%clk 0:02:55.5]} 5... Nc6
{[%clk 0:02:56.2]} 6. Nbd2 {[%clk 0:02:55.5]} 6... Bb4 {[%clk 0:02:50.5]} 7. e3
{[%clk 0:02:41.9]} 7... O-O {[%clk 0:02:50.3]} 8. a3 {[%clk 0:02:37]} 8... Bxd2+
{[%clk 0:02:48.7]} 9. Nxd2 {[%clk 0:02:37.9]} 9... Na5 {[%clk 0:02:39.7]} 10.
Qc3 {[%clk 0:02:03.8]} 10... Nxc4 {[%clk 0:02:37]} 11. Nxc4 {[%clk 0:02:04.1]}
11... dxc4 {[%clk 0:02:37.9]} 12. Qxc4 {[%clk 0:02:04.9]} 12... Rc8 {[%clk
0:02:27.3]} 13. Be2 {[%clk 0:01:44.8]} 13... Ne4 {[%clk 0:01:47.6]} 14. f3
{[%clk 0:01:28.2]} 14... Nd6 {[%clk 0:01:48]} 15. Qb4 {[%clk 0:01:28.6]} 15...
Qh4+ {[%clk 0:01:28]} 16. Bg3 {[%clk 0:01:27.6]} 16... Qg5 {[%clk 0:01:17.2]}
17. Kf2 {[%clk 0:01:27.8]} 17... b6 {[%clk 0:01:11.1]} 18. Rac1 {[%clk
0:01:25.9]} 18... h5 {[%clk 0:00:52.2]} 19. Rhe1 {[%clk 0:01:02.9]} 19... h4
{[%clk 0:00:45.3]} 20. Bf4 {[%clk 0:01:02.9]} 20... Qe7 {[%clk 0:00:45.7]} 21.
e4 {[%clk 0:00:42.9]} 21... c5 {[%clk 0:00:28.7]} 22. dxc5 {[%clk 0:00:43]}
22... bxc5 {[%clk 0:00:28.6]} 23. Qa5 {[%clk 0:00:27.4]} 23... Bh7 {[%clk
0:00:12.7]} 24. Kg1 {[%clk 0:00:27.2]} 24... h3 {[%clk 0:00:11.7]} 25. g3 {[%clk
0:00:21.4]} 25... c4 {[%clk 0:00:10.9]} 26. Qb4 {[%clk 0:00:20.4]} 26... e5
{[%clk 0:00:09.7]} 27. Be3 {[%clk 0:00:21]} 27... Rfd8 {[%clk 0:00:10]} 28. Red1
{[%clk 0:00:20.9]} 28... Qf6 {[%clk 0:00:09.3]} 29. Rd5 {[%clk 0:00:18.4]} 29...
Bg6 {[%clk 0:00:06.9]} 30. Rcd1 {[%clk 0:00:18.7]} 30... Ne8 {[%clk 0:00:07.4]}
31. Qc3 {[%clk 0:00:12.6]} 31... Rxd5 {[%clk 0:00:08]} 32. Rxd5 {[%clk
0:00:13.5]} 32... Qc6 {[%clk 0:00:03.2]} 33. Qxe5 {[%clk 0:00:11.3]} 33... Nf6
{[%clk 0:00:03.7]} 34. Rc5 {[%clk 0:00:11.6]} 34... Qb7 {[%clk 0:00:03.6]} 35.
Rxc8+ {[%clk 0:00:10.2]} 35... Qxc8 {[%clk 0:00:04.5]} 36. Kf2 {[%clk
0:00:10.2]} 36... Qb7 {[%clk 0:00:04.7]} 37. Qd4 {[%clk 0:00:06]} 37... Bxe4
{[%clk 0:00:03.2]} 38. fxe4 {[%clk 0:00:05.9]} 38... Nxe4+ {[%clk 0:00:04.1]}
39. Ke1 {[%clk 0:00:06.2]} 39... Nf6 {[%clk 0:00:04.5]} 40. Bf1 {[%clk
0:00:05.3]} 40... Qh1 {[%clk 0:00:04.6]} 41. Qd8+ {[%clk 0:00:04.3]} 41... Kh7
{[%clk 0:00:05.1]} 42. Qd2 {[%clk 0:00:05.2]} 42... Qf3 {[%clk 0:00:04.8]} 43.
Qe2 {[%clk 0:00:04.6]} 43... Qf5 {[%clk 0:00:04.9]} 44. Qxc4 {[%clk 0:00:03.8]}
44... Qb1+ {[%clk 0:00:05.3]} 45. Bc1 {[%clk 0:00:04.3]} 45... Kg8 {[%clk
0:00:03.4]} 46. Bd3 {[%clk 0:00:05]} 46... Qa1 {[%clk 0:00:03.4]} 47. Qc8+
{[%clk 0:00:05.7]} 47... Ne8 {[%clk 0:00:03.4]} 48. Qxe8# {[%clk 0:00:06.4]} 1-0